[Event "EWIBCC 2019"]
[Site "Monte-Carlo"]
[Date "2019.11.29"]
[Round "9.17"]
[White "Antova, Gabriela"]
[Black "Daulyte-Cornette, Deimante"]
[Result "1-0"]
[ECO "E12"]
[WhiteElo "2306"]
[BlackElo "2405"]
[Annotator "NA"]
[PlyCount "53"]
[EventDate "2019.11.29"]
[EventType "swiss"]
[EventCountry "MNC"]
[SourceTitle "playchess.com"]
[Source "ChessBase"]
[SourceQuality "1"]
[TimeControl "180+2"]

1. d4 {[%emt 0:00:00]} Nf6 {[%emt 0:00:00]} 2. c4 {[%emt 0:00:01]} b6 {[%emt 0:00:00]} 3. Nc3 {[%emt 0:00:06]} Bb7 {[%emt 0:00:01]} 4. Qc2 {[%emt 0:00:01]} d5 {[%emt 0:00:01]} 5. cxd5 {[%emt 0:00:12]} Nxd5 {[%emt 0:00:02]} 6. a3 {[%emt 0:00:22]} e6 {[%emt 0:00:17]} 7. e4 {[%emt 0:00:02]} Nxc3 {[%emt 0:00:01]} 8. bxc3 {[%emt 0:00:02]} Be7 {[%emt 0:00:09]} 9. Nf3 {[%emt 0:02:32]} c5 {[%emt 0:00:28]} 10. Bd3 {[%emt 0:00:00]} cxd4 {[%emt 0:00:04]} 11. cxd4 {[%emt 0:00:00]} O-O {[%emt 0:00:04]} 12. O-O {[%emt 0:00:00]} Nc6 {[%emt 0:00:02]} 13. Bb2 {[%emt 0:00:00]} Rc8 {[%emt 0:00:03]} 14. Qe2 {[%emt 0:00:00]} Na5 {[%emt 0:00:06]} 15. Rad1 {[%emt 0:00:00]} Re8 {[%emt 0:00:23]} 16. Ne5 {[%emt 0:00:00]} Bf6 {[%emt 0:00:16]} 17. f4 {[%emt 0:00:00]} Nc6 {[%emt 0:00:21]} 18. Qf2 {[%emt 0:00:00]} Qe7 {[%emt 0:00:16]} 19. Ng4 {[%emt 0:00:00]} Qd8 {[%emt 0:00:18]} 20. Nxf6+ {[%emt 0:00:00]} gxf6 {[%emt 0:00:07]} 21. d5 {[%emt 0:00:00]} exd5 {[%emt 0:00:28]} 22. exd5 {[%emt 0:00:00]} Ne7 {[%emt 0:00:01]} 23. Bxf6 {[%emt 0:00:00]} Qd6 {[%emt 0:00:04]} 24. Bxh7+ {[%emt 0:00:09]} Kf8 {[%emt 0:00:05]} 25. Qh4 {[%emt 0:00:04]} Ng8 {[%emt 0:00:09]} 26. Bxg8 {[%emt 0:00:05]} Kxg8 {[%emt 0:00:06]} 27. Qh8# {[%emt 0:00:18] Qd8} 1-0

[Event "EWIBCC 2019"]
[Site "Monte-Carlo"]
[Date "2019.11.29"]
[Round "9.19"]
[White "Rogule, Laura"]
[Black "Limanovska, Elizabete"]
[Result "1-0"]
[ECO "E17"]
[WhiteElo "2293"]
[BlackElo "2178"]
[Annotator "NA"]
[PlyCount "81"]
[EventDate "2019.11.29"]
[EventType "swiss"]
[EventCountry "MNC"]
[SourceTitle "playchess.com"]
[Source "ChessBase"]
[SourceQuality "1"]
[TimeControl "180+2"]

1. c4 {[%emt 0:00:00]} Nf6 {[%emt 0:00:03]} 2. Nf3 {[%emt 0:00:01]} e6 {[%emt 0:00:06]} 3. d4 {[%emt 0:00:03]} b6 {[%emt 0:00:03]} 4. g3 {[%emt 0:00:02]} Bb7 {[%emt 0:00:01]} 5. Bg2 {[%emt 0:00:00]} Be7 {[%emt 0:00:01]} 6. O-O {[%emt 0:00:03]} O-O {[%emt 0:00:01]} 7. Re1 {[%emt 0:00:04]} d5 {[%emt 0:00:08]} 8. Ne5 {[%emt 0:00:20]} Nbd7 {[%emt 0:00:07]} 9. Nc3 {[%emt 0:00:07]} c6 {[%emt 0:00:20]} 10. cxd5 {[%emt 0:00:14]} cxd5 {[%emt 0:00:18]} 11. Bf4 {[%emt 0:00:14]} Nxe5 {[%emt 0:00:09]} 12. Bxe5 {[%emt 0:00:04]} Nd7 {[%emt 0:00:01]} 13. Bf4 {[%emt 0:00:06]} a6 {[%emt 0:00:08]} 14. Rc1 {[%emt 0:00:04]} b5 {[%emt 0:00:08]} 15. Qd2 {[%emt 0:00:19]} Rc8 {[%emt 0:00:02]} 16. Qd3 {[%emt 0:00:28]} Nb6 {[%emt 0:00:15]} 17. b3 {[%emt 0:00:04]} Bd6 {[%emt 0:00:19]} 18. Bd2 {[%emt 0:00:08]} Qd7 {[%emt 0:00:10]} 19. Rc2 {[%emt 0:00:05]} Rc7 {[%emt 0:00:01]} 20. Rec1 {[%emt 0:00:02]} Rfc8 {[%emt 0:00:01]} 21. Nd1 {[%emt 0:00:09]} Ba3 {[%emt 0:00:06]} 22. Rxc7 {[%emt 0:00:05]} Rxc7 {[%emt 0:00:02]} 23. Rxc7 {[%emt 0:00:01]} Qxc7 {[%emt 0:00:01]} 24. Ba5 {[%emt 0:00:02]} b4 {[%emt 0:00:42]} 25. Qd2 {[%emt 0:00:23]} Qd6 {[%emt 0:00:03]} 26. Nb2 {[%emt 0:00:09]} Bxb2 {[%emt 0:00:13]} 27. Qxb2 {[%emt 0:00:02]} Nd7 {[%emt 0:00:12]} 28. Qd2 {[%emt 0:00:03]} Qc6 {[%emt 0:00:04]} 29. Bxb4 {[%emt 0:00:03]} Nf6 {[%emt 0:00:03]} 30. f3 {[%emt 0:00:11]} h6 {[%emt 0:00:03]} 31. Qc3 {[%emt 0:00:04]} Qd7 {[%emt 0:00:05]} 32. Kf2 {[%emt 0:00:05]} Bc6 {[%emt 0:00:02]} 33. Qc5 {[%emt 0:00:04]} Qe8 {[%emt 0:00:03]} 34. e3 {[%emt 0:00:05]} Bb5 {[%emt 0:00:01]} 35. a4 {[%emt 0:00:01]} Bc6 {[%emt 0:00:01]} 36. Bf1 {[%emt 0:00:02]} Qa8 {[%emt 0:00:01]} 37. Qb6 {[%emt 0:00:06]} Bb7 {[%emt 0:00:03]} 38. Qc7 {[%emt 0:00:03]} Ne8 {[%emt 0:00:01]} 39. Qe7 {[%emt 0:00:01]} Nf6 {[%emt 0:00:05]} 40. Bc5 {[%emt 0:00:01]} a5 {[%emt 0:00:02]} 41. Bb5 {[%emt 0:00:02]} 1-0

[Event "EWIBCC 2019"]
[Site "Monte-Carlo"]
[Date "2019.11.29"]
[Round "10.3"]
[White "Sebag, Marie"]
[Black "Savina, Anastasia"]
[Result "1-0"]
[ECO "C95"]
[WhiteElo "2443"]
[BlackElo "2354"]
[Annotator "NA"]
[PlyCount "91"]
[EventDate "2019.11.29"]
[EventType "swiss"]
[EventCountry "MNC"]
[SourceTitle "playchess.com"]
[Source "ChessBase"]
[SourceQuality "1"]
[TimeControl "180+2"]

1. e4 {[%emt 0:00:00]} e5 {[%emt 0:00:02]} 2. Nf3 {[%emt 0:00:00]} Nc6 {[%emt 0:00:01]} 3. Bb5 {[%emt 0:00:01]} a6 {[%emt 0:00:01]} 4. Ba4 {[%emt 0:00:01]} Nf6 {[%emt 0:00:02]} 5. O-O {[%emt 0:00:02]} Be7 {[%emt 0:00:01]} 6. Re1 {[%emt 0:00:02]} b5 {[%emt 0:00:01]} 7. Bb3 {[%emt 0:00:01]} d6 {[%emt 0:00:01]} 8. c3 {[%emt 0:00:05]} O-O {[%emt 0:00:01]} 9. h3 {[%emt 0:00:02]} Nb8 {[%emt 0:00:01]} 10. d4 {[%emt 0:00:03]} Nbd7 {[%emt 0:00:02]} 11. c4 {[%emt 0:00:11]} c6 {[%emt 0:00:09]} 12. Qc2 {[%emt 0:00:10]} Bb7 {[%emt 0:00:09]} 13. Nc3 {[%emt 0:00:13]} b4 {[%emt 0:00:03]} 14. Na4 {[%emt 0:00:11]} c5 {[%emt 0:00:02]} 15. d5 {[%emt 0:00:22]} Nh5 {[%emt 0:00:17]} 16. a3 {[%emt 0:02:08]} a5 {[%emt 0:00:01]} 17. Be3 {[%emt 0:00:00]} g6 {[%emt 0:00:06]} 18. Bh6 {[%emt 0:00:00]} Ng7 {[%emt 0:00:04]} 19. Qd2 {[%emt 0:00:00]} Nf6 {[%emt 0:00:20]} 20. Bc2 {[%emt 0:00:00]} Kh8 {[%emt 0:00:05]} 21. b3 {[%emt 0:00:00]} Ng8 {[%emt 0:00:02]} 22. Bg5 {[%emt 0:00:00]} Bxg5 {[%emt 0:00:37]} 23. Qxg5 {[%emt 0:00:00]} f6 {[%emt 0:00:05]} 24. Qe3 {[%emt 0:00:00]} Qc7 {[%emt 0:00:33]} 25. Nd2 {[%emt 0:00:00]} f5 {[%emt 0:00:11]} 26. f4 {[%emt 0:00:00]} exf4 {[%emt 0:00:08]} 27. Qxf4 {[%emt 0:00:00]} fxe4 {[%emt 0:00:04]} 28. Qxe4 {[%emt 0:00:00]} Rae8 {[%emt 0:00:09]} 29. Qh4 {[%emt 0:00:00]} Ne7 {[%emt 0:00:22]} 30. axb4 {[%emt 0:00:00]} axb4 {[%emt 0:00:01]} 31. g4 {[%emt 0:00:02]} Kg8 {[%emt 0:00:14]} 32. Ne4 {[%emt 0:00:02]} Bc8 {[%emt 0:00:05]} 33. Nf6+ {[%emt 0:00:01]} Rxf6 {[%emt 0:00:01]} 34. Qxf6 {[%emt 0:00:00]} Qd7 {[%emt 0:00:04]} 35. Nb6 {[%emt 0:00:04]} Qd8 {[%emt 0:00:01]} 36. Nxc8 {[%emt 0:00:02]} Nxc8 {[%emt 0:00:02]} 37. Qxd8 {[%emt 0:00:04]} Rxd8 {[%emt 0:00:01]} 38. Ra8 {[%emt 0:00:02]} Kf7 {[%emt 0:00:02]} 39. Rb8 {[%emt 0:00:03]} Ne8 {[%emt 0:00:03]} 40. Rb7+ {[%emt 0:00:05]} Kg8 {[%emt 0:00:02]} 41. Ra1 {[%emt 0:00:03]} Nf6 {[%emt 0:00:03]} 42. Ra8 {[%emt 0:00:02]} Re8 {[%emt 0:00:02]} 43. Rbb8 {[%emt 0:00:02]} Kg7 {[%emt 0:00:02]} 44. Rxc8 {[%emt 0:00:01]} Re2 {[%emt 0:00:02]} 45. g5 {[%emt 0:00:02]} Rxc2 {[%emt 0:00:02]} 46. Rc7+ {[%emt 0:00:03]} 1-0

[Event "EWIBCC 2019"]
[Site "Monte-Carlo"]
[Date "2019.11.29"]
[Round "10.6"]
[White "Mkrtchian, Lilit"]
[Black "Gaponenko, Inna"]
[Result "1-0"]
[ECO "A26"]
[WhiteElo "2402"]
[BlackElo "2427"]
[Annotator "NA"]
[PlyCount "100"]
[EventDate "2019.11.29"]
[EventType "swiss"]
[EventCountry "MNC"]
[SourceTitle "playchess.com"]
[Source "ChessBase"]
[SourceQuality "1"]
[TimeControl "180+2"]

1. c4 {[%emt 0:00:00]} g6 {[%emt 0:00:01]} 2. g3 {[%emt 0:00:02]} Bg7 {[%emt 0:00:01]} 3. Bg2 {[%emt 0:00:01]} d6 {[%emt 0:00:01]} 4. Nc3 {[%emt 0:00:05]} Nf6 {[%emt 0:00:01]} 5. e4 {[%emt 0:00:02]} O-O {[%emt 0:00:02]} 6. Nge2 {[%emt 0:00:02]} e5 {[%emt 0:00:08]} 7. O-O {[%emt 0:00:05]} Nc6 {[%emt 0:00:01]} 8. d3 {[%emt 0:00:01]} Be6 {[%emt 0:00:12]} 9. f4 {[%emt 0:00:19]} exf4 {[%emt 0:00:09]} 10. gxf4 {[%emt 0:00:13]} Bg4 {[%emt 0:00:10]} 11. h3 {[%emt 0:00:27]} Bxe2 {[%emt 0:00:03]} 12. Qxe2 {[%emt 0:00:02]} Nd4 {[%emt 0:00:09]} 13. Qf2 {[%emt 0:00:02]} Nd7 {[%emt 0:00:13]} 14. Be3 {[%emt 0:00:01]} c5 {[%emt 0:00:01]} 15. Nd5 {[%emt 0:00:08]} Nb6 {[%emt 0:00:05]} 16. Nc3 {[%emt 0:00:20]} Qe7 {[%emt 0:00:15]} 17. Rae1 {[%emt 0:00:07]} Rae8 {[%emt 0:00:15]} 18. Kh1 {[%emt 0:00:28]} Bf6 {[%emt 0:00:10]} 19. Qd2 {[%emt 0:00:22]} Bh4 {[%emt 0:00:13]} 20. Rc1 {[%emt 0:00:01]} f5 {[%emt 0:00:01]} 21. Bxd4 {[%emt 0:00:05]} cxd4 {[%emt 0:00:01]} 22. Ne2 {[%emt 0:00:06]} Qg7 {[%emt 0:00:17]} 23. c5 {[%emt 0:00:10]} dxc5 {[%emt 0:00:03]} 24. Rxc5 {[%emt 0:00:01]} fxe4 {[%emt 0:00:14]} 25. dxe4 {[%emt 0:00:03]} Rd8 {[%emt 0:00:01]} 26. Qd3 {[%emt 0:00:04]} Kh8 {[%emt 0:00:26]} 27. Rfc1 {[%emt 0:00:04]} Rd7 {[%emt 0:00:05]} 28. b3 {[%emt 0:00:10]} Bf2 {[%emt 0:00:10]} 29. a4 {[%emt 0:00:03]} Be3 {[%emt 0:00:02]} 30. Rf1 {[%emt 0:00:02]} Rdd8 {[%emt 0:00:05]} 31. a5 {[%emt 0:00:02]} Nd7 {[%emt 0:00:01]} 32. Rc7 {[%emt 0:00:05]} Qf6 {[%emt 0:00:03]} 33. e5 {[%emt 0:00:06]} Qe6 {[%emt 0:00:01]} 34. Qb5 {[%emt 0:00:08]} a6 {[%emt 0:00:12]} 35. Qxb7 {[%emt 0:00:02]} d3 {[%emt 0:00:02]} 36. Nc3 {[%emt 0:00:02]} Bxf4 {[%emt 0:00:02]} 37. Ne4 {[%emt 0:00:06]} Bxe5 {[%emt 0:00:10]} 38. Rc6 {[%emt 0:00:03]} Qe7 {[%emt 0:00:05]} 39. Rc4 {[%emt 0:00:04]} Rxf1+ {[%emt 0:00:03]} 40. Bxf1 {[%emt 0:00:01]} Rf8 {[%emt 0:00:02]} 41. Bg2 {[%emt 0:00:01]} Bg7 {[%emt 0:00:02]} 42. Rc1 {[%emt 0:00:03]} Qe6 {[%emt 0:00:02]} 43. Rd1 {[%emt 0:00:02]} Ne5 {[%emt 0:00:02]} 44. Qb4 {[%emt 0:00:02]} Qf5 {[%emt 0:00:02]} 45. Qe7 {[%emt 0:00:03]} Qf4 {[%emt 0:00:01]} 46. Ng5 {[%emt 0:00:02]} Qe3 {[%emt 0:00:02]} 47. Ne6 {[%emt 0:00:01]} Qh6 {[%emt 0:00:04]} 48. Nxf8 {[%emt 0:00:02]} Ng4 {[%emt 0:00:05]} 49. Rf1 {[%emt 0:00:07]} d2 {[%emt 0:00:02]} 50. Ne6 Nf2+ {[%emt 0:00:02]} 1-0

[Event "EWIBCC 2019"]
[Site "Monte-Carlo"]
[Date "2019.11.29"]
[Round "10.7"]
[White "Buksa, Nataliya"]
[Black "Paehtz, Elisabeth"]
[Result "1/2-1/2"]
[ECO "B51"]
[WhiteElo "2410"]
[BlackElo "2484"]
[Annotator "RC"]
[PlyCount "143"]
[EventDate "2019.11.29"]
[EventType "swiss"]
[EventCountry "MNC"]
[SourceTitle "playchess.com"]
[Source "ChessBase"]
[SourceQuality "1"]
[TimeControl "180+2"]

1. e4 {[%emt 0:00:00]} c5 {[%emt 0:00:00]} 2. Nf3 {[%emt 0:00:00]} d6 {[%emt 0:00:00]} 3. Bb5+ {[%emt 0:00:00]} Nd7 {[%emt 0:00:00]} 4. Ba4 {[%emt 0:00:01]} Ngf6 {[%emt 0:00:08]} 5. O-O {[%emt 0:00:01]} a6 {[%emt 0:00:02]} 6. c4 {[%emt 0:00:01]} e6 {[%emt 0:00:01]} 7. Nc3 {[%emt 0:00:02]} Be7 {[%emt 0:00:01]} 8. d3 {[%emt 0:00:07]} O-O {[%emt 0:00:03]} 9. h3 {[%emt 0:00:06]} Qc7 {[%emt 0:00:02]} 10. a3 {[%emt 0:00:03]} b6 {[%emt 0:00:02]} 11. b4 {[%emt 0:00:01]} Bb7 {[%emt 0:00:03]} 12. Bc2 {[%emt 0:00:02]} cxb4 {[%emt 0:00:11]} 13. axb4 {[%emt 0:00:01]} b5 {[%emt 0:00:00]} 14. Bg5 {[%emt 0:00:54]} bxc4 {[%emt 0:00:04]} 15. d4 {[%emt 0:00:01]} h6 {[%emt 0:00:15]} 16. Bh4 {[%emt 0:00:01]} e5 {[%emt 0:00:02]} 17. d5 {[%emt 0:00:04]} Rfe8 {[%emt 0:00:10]} 18. Qe2 {[%emt 0:00:11]} Nf8 {[%emt 0:00:08]} 19. Bg3 {[%emt 0:00:13]} Ng6 {[%emt 0:00:09]} 20. Nh2 {[%emt 0:00:02]} Nd7 {[%emt 0:00:05]} 21. Ba4 {[%emt 0:00:07]} Rec8 {[%emt 0:00:05]} 22. Qh5 {[%emt 0:00:02]} Bg5 {[%emt 0:00:18]} 23. Rad1 {[%emt 0:00:11]} Nf6 {[%emt 0:00:14]} 24. Qe2 {[%emt 0:00:01]} a5 {[%emt 0:00:02]} 25. Rb1 {[%emt 0:00:14]} Bf4 {[%emt 0:00:17]} 26. Ng4 {[%emt 0:00:09]} axb4 27. Rxb4 {[%emt 0:00:01]} Bxg3 {[%emt 0:00:33]} 28. Nxf6+ {[%emt 0:00:02]} gxf6 {[%emt 0:00:01]} 29. Rxb7 {[%emt 0:00:14]} Qxb7 {[%emt 0:00:01]} 30. fxg3 {[%emt 0:00:01]} Qb4 {[%emt 0:00:11]} 31. Qc2 {[%emt 0:00:10]} Kg7 {[%emt 0:00:08]} 32. h4 {[%emt 0:00:08]} Rcb8 {[%emt 0:00:12]} 33. h5 {[%emt 0:00:01]} Ne7 {[%emt 0:00:01]} 34. Rf2 {[%emt 0:00:19]} Qc5 {[%emt 0:00:04]} 35. Kh2 {[%emt 0:00:02]} Qe3 {[%emt 0:00:05]} 36. Rf3 {[%emt 0:00:06]} Qg5 {[%emt 0:00:02]} 37. g4 {[%emt 0:00:03]} Kh8 {[%emt 0:00:10]} 38. Nd1 {[%emt 0:00:06]} Qxg4 {[%emt 0:00:02]} 39. Nf2 {[%emt 0:00:02]} Qg5 {[%emt 0:00:05]} 40. Rg3 {[%emt 0:00:04]} Qxh5+ {[%emt 0:00:04]} 41. Rh3 {[%emt 0:00:06]} Qg6 {[%emt 0:00:01]} 42. Bd7 {[%emt 0:00:04]} Rg8 {[%emt 0:00:03]} 43. Ng4 {[%emt 0:00:01]} Kg7 {[%emt 0:00:09]} 44. Qf2 {[%emt 0:00:02]} Rh8 {[%emt 0:00:01]} 45. Nxe5 {[%emt 0:00:13]} fxe5 {[%emt 0:00:03]} 46. Rg3 {[%emt 0:00:00]} Rhd8 {[%emt 0:00:03]} 47. Bf5 {[%emt 0:00:02]} Qg5 {[%emt 0:00:02]} 48. Rxg5+ {[%emt 0:00:03]} hxg5 {[%emt 0:00:01]} 49. Qd2 {[%emt 0:00:06]} f6 {[%emt 0:00:03]} 50. Qb4 {[%emt 0:00:01]} Nxf5 51. exf5 {[%emt 0:00:01]} g4 {[%emt 0:00:11]} 52. Qb7+ {[%emt 0:00:01]} Kh6 {[%emt 0:00:01]} 53. Qf7 {[%emt 0:00:03]} Kg5 {[%emt 0:00:01]} 54. Kg3 {[%emt 0:00:03]} Rg8 {[%emt 0:00:02]} 55. Qc7 {[%emt 0:00:04]} Rac8 {[%emt 0:00:01]} 56. Qxd6 {[%emt 0:00:02]} c3 {[%emt 0:00:01]} 57. Qb6 {[%emt 0:00:00]} c2 {[%emt 0:00:02]} 58. Qe3+ {[%emt 0:00:01]} Kxf5 {[%emt 0:00:01]} 59. Qd3+ {[%emt 0:00:02]} e4 {[%emt 0:00:01]} 60. Qf1+ {[%emt 0:00:00]} Ke5 {[%emt 0:00:02]} 61. Qf4+ {[%emt 0:00:01]} Kxd5 {[%emt 0:00:12]} 62. Qf5+ {[%emt 0:00:01]} Kd4 {[%emt 0:00:00]} 63. Qxf6+ {[%emt 0:00:01]} Kd3 {[%emt 0:00:00]} 64. Qd6+ {[%emt 0:00:00]} Ke2 {[%emt 0:00:00]} 65. Qa6+ {[%emt 0:00:01]} Kd1 {[%emt 0:00:02]} 66. Qd6+ {[%emt 0:00:01]} Kc1 {[%emt 0:00:01]} 67. Kf2 {[%emt 0:00:04]} Rgf8+ {[%emt 0:00:02]} 68. Ke2 {[%emt 0:00:00]} Kb2 {[%emt 0:00:03]} 69. Qb4+ {[%emt 0:00:01]} Ka2 {[%emt 0:00:01]} 70. Qa4+ {[%emt 0:00:01]} Kb2 {[%emt 0:00:01]} 71. Qb4+ {[%emt 0:00:00]} Ka2 {[%emt 0:00:03]} 72. Qa4+ {[%emt 0:00:01]} 1/2-1/2

[Event "EWIBCC 2019"]
[Site "Monte-Carlo"]
[Date "2019.11.29"]
[Round "10.8"]
[White "Belenkaya, Dina"]
[Black "Babiy, Olga"]
[Result "1-0"]
[ECO "B07"]
[WhiteElo "2302"]
[BlackElo "2249"]
[Annotator "NA"]
[PlyCount "101"]
[EventDate "2019.11.29"]
[EventType "swiss"]
[EventCountry "MNC"]
[SourceTitle "playchess.com"]
[Source "ChessBase"]
[SourceQuality "1"]
[TimeControl "180+2"]

1. e4 {[%emt 0:00:00]} d6 {[%emt 0:00:00]} 2. d4 {[%emt 0:00:01]} Nf6 {[%emt 0:00:01]} 3. Nc3 {[%emt 0:00:01]} c6 {[%emt 0:00:01]} 4. f4 {[%emt 0:00:04]} Qa5 {[%emt 0:00:01]} 5. Bd3 {[%emt 0:00:03]} e5 {[%emt 0:03:07]} 6. dxe5 {[%emt 0:00:07]} dxe5 {[%emt 0:00:00]} 7. f5 {[%emt 0:00:02]} Nbd7 {[%emt 0:00:00]} 8. Nf3 {[%emt 0:00:04]} Bc5 {[%emt 0:00:00]} 9. h3 {[%emt 0:00:07]} b5 {[%emt 0:00:00]} 10. Nd2 {[%emt 0:00:13]} Qb6 {[%emt 0:00:00]} 11. Qe2 {[%emt 0:00:04]} Qc7 {[%emt 0:00:00]} 12. Nb3 {[%emt 0:00:07]} Bb6 {[%emt 0:00:00]} 13. Be3 {[%emt 0:00:14]} h5 {[%emt 0:00:00]} 14. g3 {[%emt 0:00:04]} Bb7 {[%emt 0:00:00]} 15. a4 {[%emt 0:00:18]} a6 {[%emt 0:00:00]} 16. O-O {[%emt 0:00:35]} Rc8 {[%emt 0:00:00]} 17. Kh2 {[%emt 0:00:03]} c5 {[%emt 0:00:00]} 18. axb5 {[%emt 0:00:02]} c4 {[%emt 0:00:00]} 19. bxa6 {[%emt 0:01:29]} Ba8 {[%emt 0:00:00]} 20. Nb5 {[%emt 0:00:00]} Qc6 {[%emt 0:00:00]} 21. Bxc4 {[%emt 0:00:00]} Nxe4 {[%emt 0:00:00]} 22. Bxb6 {[%emt 0:00:00]} h4 {[%emt 0:00:00]} 23. Qxe4 {[%emt 0:00:00]} hxg3+ {[%emt 0:00:00]} 24. Kxg3 {[%emt 0:00:00]} Qxb6 {[%emt 0:00:00]} 25. Bd5 {[%emt 0:00:00]} Qxb5 {[%emt 0:00:20]} 26. Bxa8 {[%emt 0:00:00]} Nf6 {[%emt 0:00:01]} 27. Qb7 {[%emt 0:00:05]} Nh5+ {[%emt 0:00:01]} 28. Kg2 {[%emt 0:00:01]} Qe2+ {[%emt 0:00:02]} 29. Kg1 {[%emt 0:00:02]} Qe3+ {[%emt 0:00:09]} 30. Rf2 {[%emt 0:00:01]} O-O {[%emt 0:00:03]} 31. Qf3 {[%emt 0:00:03]} Qg5+ {[%emt 0:00:01]} 32. Qg2 {[%emt 0:00:01]} Qh6 {[%emt 0:00:05]} 33. Bb7 {[%emt 0:00:02]} Rc4 {[%emt 0:00:08]} 34. a7 {[%emt 0:00:02]} Nf4 {[%emt 0:00:01]} 35. Rxf4 {[%emt 0:00:01]} exf4 {[%emt 0:00:02]} 36. a8=Q {[%emt 0:00:04]} Rxa8 {[%emt 0:00:01]} 37. Rxa8+ {[%emt 0:00:02]} Kh7 {[%emt 0:00:01]} 38. Be4 {[%emt 0:00:02]} f3 {[%emt 0:00:04]} 39. f6+ {[%emt 0:00:07]} Rxe4 {[%emt 0:00:01]} 40. Qxg7+ {[%emt 0:00:04]} Qxg7+ {[%emt 0:00:01]} 41. fxg7 {[%emt 0:00:01]} Kxg7 {[%emt 0:00:01]} 42. c4 {[%emt 0:00:02]} Re2 {[%emt 0:00:04]} 43. Nd4 {[%emt 0:00:02]} f2+ {[%emt 0:00:05]} 44. Kf1 {[%emt 0:00:01]} Rxb2 {[%emt 0:00:01]} 45. c5 {[%emt 0:00:01]} Rb4 {[%emt 0:00:05]} 46. Rd8 {[%emt 0:00:01]} Rc4 {[%emt 0:00:05]} 47. c6 Kf6 {[%emt 0:00:02]} 48. Kxf2 {[%emt 0:00:13]} Ke5 49. Ke3 Rc3+ 50. Kd2 {[%emt 0:00:04]} Rxh3 51. c7 {[%emt 0:00:02]} 1-0

[Event "EWIBCC 2019"]
[Site "Monte-Carlo"]
[Date "2019.11.29"]
[Round "10.11"]
[White "Michna, Marta"]
[Black "Antova, Gabriela"]
[Result "1-0"]
[ECO "C00"]
[WhiteElo "2366"]
[BlackElo "2306"]
[Annotator "NA"]
[PlyCount "113"]
[EventDate "2019.11.29"]
[EventType "swiss"]
[EventCountry "MNC"]
[SourceTitle "playchess.com"]
[Source "ChessBase"]
[SourceQuality "1"]
[TimeControl "180+2"]

1. Nf3 {[%emt 0:00:00]} d5 {[%emt 0:00:00]} 2. g3 {[%emt 0:00:00]} Nf6 {[%emt 0:00:00]} 3. Bg2 {[%emt 0:00:01]} e6 {[%emt 0:00:02]} 4. O-O {[%emt 0:00:01]} Be7 {[%emt 0:00:01]} 5. d3 {[%emt 0:00:01]} O-O {[%emt 0:00:07]} 6. Nbd2 {[%emt 0:00:02]} c5 {[%emt 0:00:03]} 7. e4 {[%emt 0:00:01]} Nc6 {[%emt 0:00:04]} 8. c3 {[%emt 0:00:03]} b5 {[%emt 0:00:09]} 9. Re1 {[%emt 0:00:43]} Bb7 {[%emt 0:00:14]} 10. Qc2 {[%emt 0:00:04]} Qc7 {[%emt 0:00:22]} 11. h3 {[%emt 0:00:02]} Rfd8 {[%emt 0:00:06]} 12. Nf1 {[%emt 0:00:31]} a6 {[%emt 0:00:55]} 13. Bf4 {[%emt 0:00:04]} e5 {[%emt 0:00:08]} 14. Bg5 {[%emt 0:00:09]} d4 {[%emt 0:00:10]} 15. cxd4 {[%emt 0:00:29]} cxd4 {[%emt 0:00:03]} 16. Bxf6 {[%emt 0:00:12]} Bxf6 {[%emt 0:00:02]} 17. Rac1 {[%emt 0:00:03]} Rac8 {[%emt 0:00:03]} 18. a3 {[%emt 0:01:10]} Qd7 {[%emt 0:00:13]} 19. Qb1 {[%emt 0:00:00]} b4 {[%emt 0:00:04]} 20. N1d2 {[%emt 0:00:00]} a5 {[%emt 0:00:17]} 21. Nc4 {[%emt 0:00:00]} Ba6 {[%emt 0:00:01]} 22. Nb6 {[%emt 0:00:00]} Qb7 {[%emt 0:00:05]} 23. Nxc8 {[%emt 0:00:00]} Rxc8 {[%emt 0:00:37]} 24. Bf1 {[%emt 0:00:00]} b3 {[%emt 0:00:00]} 25. h4 {[%emt 0:00:00]} h6 {[%emt 0:00:00]} 26. Nd2 {[%emt 0:00:00]} g5 {[%emt 0:00:00]} 27. Bh3 {[%emt 0:00:00]} Rd8 {[%emt 0:00:00]} 28. h5 {[%emt 0:00:00]} Kg7 {[%emt 0:00:00]} 29. Nc4 {[%emt 0:00:00]} Kh8 {[%emt 0:00:00]} 30. Bg4 {[%emt 0:00:00]} Qe7 {[%emt 0:00:03]} 31. Nb6 {[%emt 0:00:00]} Qb7 {[%emt 0:00:01]} 32. Nd5 {[%emt 0:00:00]} Be7 {[%emt 0:00:03]} 33. Kg2 {[%emt 0:00:00]} Bd6 {[%emt 0:00:01]} 34. Rcd1 {[%emt 0:00:04]} Bb5 {[%emt 0:00:02]} 35. Qc1 {[%emt 0:00:02]} Qa6 {[%emt 0:00:02]} 36. Qd2 {[%emt 0:00:01]} Ne7 {[%emt 0:00:03]} 37. Nxe7 {[%emt 0:00:03]} Bxe7 {[%emt 0:00:13]} 38. Be2 {[%emt 0:00:02]} Kg7 {[%emt 0:00:02]} 39. Rc1 g4 {[%emt 0:00:00]} 40. Qd1 {[%emt 0:00:02]} Bg5 {[%emt 0:00:00]} 41. Rc5 {[%emt 0:00:01]} f5 {[%emt 0:00:00]} 42. Rxe5 {[%emt 0:00:02]} fxe4 {[%emt 0:00:00]} 43. Rxe4 {[%emt 0:00:00]} Bc6 {[%emt 0:00:00]} 44. Bxg4 {[%emt 0:00:02]} Bxe4+ {[%emt 0:00:01]} 45. Rxe4 {[%emt 0:00:00]} Qb7 {[%emt 0:00:02]} 46. Bf3 {[%emt 0:00:02]} Qc7 {[%emt 0:00:02]} 47. Qxb3 {[%emt 0:00:02]} Rf8 {[%emt 0:00:02]} 48. Qd5 {[%emt 0:00:05]} Bf6 {[%emt 0:00:02]} 49. Rg4+ {[%emt 0:00:01]} Kh8 {[%emt 0:00:02]} 50. Be4 {[%emt 0:00:02]} Qb6 {[%emt 0:00:02]} 51. Qf5 {[%emt 0:00:02]} Qa7 {[%emt 0:00:02]} 52. Qg6 {[%emt 0:00:05]} Qg7 {[%emt 0:00:05]} 53. Qf5 {[%emt 0:00:00]} Qa7 {[%emt 0:00:01]} 54. Qd5 {[%emt 0:00:07]} Qb8 {[%emt 0:00:05]} 55. Qe6 {[%emt 0:00:06]} Qc7 {[%emt 0:00:05]} 56. Rg6 {[%emt 0:00:02]} Bg7 {[%emt 0:00:02]} 57. Rxh6+ {[%emt 0:00:00]} 1-0

[Event "EWIBCC 2019"]
[Site "Monte-Carlo"]
[Date "2019.11.29"]
[Round "10.12"]
[White "Bodnaruk, Anastasia"]
[Black "Petrova, Irina"]
[Result "1-0"]
[ECO "B07"]
[WhiteElo "2412"]
[BlackElo "2109"]
[Annotator "NA"]
[PlyCount "51"]
[EventDate "2019.11.29"]
[EventType "swiss"]
[EventCountry "MNC"]
[SourceTitle "playchess.com"]
[Source "ChessBase"]
[SourceQuality "1"]
[TimeControl "180+2"]

1. e4 {[%emt 0:00:00]} d6 {[%emt 0:00:00]} 2. d4 {[%emt 0:00:00]} Nf6 {[%emt 0:00:00]} 3. Nc3 {[%emt 0:00:00]} g6 {[%emt 0:00:00]} 4. Be3 {[%emt 0:00:03]} a6 {[%emt 0:00:02]} 5. Qd2 {[%emt 0:00:23]} Nbd7 {[%emt 0:00:19]} 6. f4 {[%emt 0:00:08]} Ng4 {[%emt 0:00:12]} 7. Nf3 {[%emt 0:00:13]} Nxe3 {[%emt 0:00:04]} 8. Qxe3 {[%emt 0:00:01]} Bg7 {[%emt 0:00:01]} 9. e5 {[%emt 0:00:12]} Nb6 {[%emt 0:00:31]} 10. O-O-O {[%emt 0:00:13]} Be6 {[%emt 0:00:25]} 11. Ng5 {[%emt 0:00:10]} Qc8 {[%emt 0:00:35]} 12. d5 {[%emt 0:00:21]} Bg4 {[%emt 0:00:02]} 13. exd6 {[%emt 0:00:07]} O-O {[%emt 0:00:32]} 14. dxe7 {[%emt 0:00:09]} Re8 {[%emt 0:00:00]} 15. Rd2 {[%emt 0:00:13]} Qd7 {[%emt 0:00:04]} 16. d6 {[%emt 0:00:04]} h6 {[%emt 0:00:09]} 17. Nf3 {[%emt 0:00:09]} Bxf3 {[%emt 0:00:02]} 18. gxf3 {[%emt 0:00:05]} Bxc3 {[%emt 0:00:10]} 19. Qxc3 {[%emt 0:00:14]} cxd6 {[%emt 0:00:02]} 20. Bd3 {[%emt 0:00:10]} Rac8 {[%emt 0:00:01]} 21. Qd4 {[%emt 0:00:03]} Qc6 {[%emt 0:00:06]} 22. f5 {[%emt 0:00:04]} Rxe7 {[%emt 0:00:06]} 23. fxg6 {[%emt 0:00:01]} fxg6 {[%emt 0:00:05]} 24. Rg1 {[%emt 0:00:03]} Rg7 {[%emt 0:00:02]} 25. Bxg6 {[%emt 0:00:06]} Nd7 {[%emt 0:00:08]} 26. Bh7+ {[%emt 0:00:05]} 1-0